bitfinex-derivatives/quotes_SOLF0:USTF0_20241120
["timestamp","ask_amount","ask_price","bid_price","bid_amount"]
[1732101566082,1.8489,235.68,235.52,16.56677824]
[1732101569492,1.8489,235.68,235.51,5.313]
[1732101569685,1.8489,235.68,235.52,2.56]
[1732101570490,1.0,235.67,235.52,2.56]
[1732101570791,16.56677824,235.66,235.52,2.56]
[1732101570994,16.56677824,235.66,235.44,16.56677824]
[1732101570995,2.56,235.65,235.44,16.56677824]
[1732101571191,16.56677824,235.62,235.46,2.56]
[1732101571695,1.7576,235.61,235.46,2.56]
[1732101572190,1.7991,235.6,235.4,20.24677824]
[1732101572384,1.7991,235.6,235.41,2.56]
[1732101572585,16.56677824,235.58,235.42,2.56]
[1732101572786,16.56677824,235.58,235.43,2.56]
[1732101572987,1.8711,235.57,235.43,2.56]
[1732101575290,1.8711,235.57,235.44,16.56677824]
[1732101576785,1.0,235.59,235.44,16.56677824]
[1732101579393,1.0,235.59,235.45,2.56]
[1732101579793,17.56677824,235.59,235.45,2.56]
[1732101580290,17.56677824,235.59,235.44,2.56]
[1732101581694,16.56677824,235.55,235.44,2.56]
[1732101581896,1.8235,235.54,235.44,2.56]
[1732101582094,6.2077,235.54,235.4,1.8075]
[1732101582292,1.8272,235.53,235.4,1.8075]
[1732101583798,1.0,235.52,235.4,1.8075]
[1732101586501,1.0,235.52,235.38,2.56]
[1732101586701,10.38937004,235.5,235.38,2.56]
[1732101587498,10.38937004,235.5,235.33,1.732]
[1732101587499,10.38937004,235.47,235.36,2.56]
[1732101588001,10.38937004,235.47,235.34,2.56]
[1732101588199,10.38937004,235.47,235.34,12.94937004]
[1732101588499,10.38937004,235.5,235.34,12.94937004]
[1732101592405,1.0,235.52,235.37,10.38937004]
[1732101594797,1.0,235.52,235.34,2.56]
[1732101594997,10.38937004,235.5,235.34,12.94937004]
[1732101596003,10.38937004,235.47,235.34,2.56]
[1732101596200,10.38937004,235.47,235.33,1.732]
[1732101596507,10.38937004,235.47,235.35,2.56]
[1732101597898,10.38937004,235.47,235.33,1.732]
[1732101598101,10.38937004,235.47,235.34,2.48]
[1732101598503,10.38937004,235.44,235.34,2.48]
[1732101599101,10.38937004,235.44,235.33,1.732]
[1732101599705,1.0,235.43,235.33,1.732]
[1732101600004,10.38937004,235.41,235.32,2.48]
[1732101602304,1.0,235.43,235.32,2.48]
[1732101602504,1.0,235.43,235.34,10.38937004]
[1732101602710,12.22587004,235.5,235.34,10.38937004]
[1732101604107,12.22587004,235.5,235.37,10.38937004]
[1732101604307,12.22587004,235.5,235.38,2.48]
[1732101605107,12.21657004,235.53,235.38,2.48]
[1732101605609,12.21657004,235.53,235.38,4.254]
[1732101606110,1.8272,235.53,235.4,10.38937004]
[1732101607107,1.8272,235.53,235.38,4.254]
[1732101607108,12.21657004,235.53,235.38,4.254]
[1732101607311,12.74,235.62,235.43,10.38937004]
[1732101607509,10.38937004,235.6,235.44,2.48]
[1732101607704,10.38937004,235.6,235.46,10.38937004]
[1732101609607,1.7658,235.61,235.49,10.38937004]
[1732101609816,1.8056,235.62,235.5,2.48]
[1732101610019,14.74877004,235.66,235.52,10.38937004]
[1732101610020,12.26877004,235.66,235.52,10.38937004]
[1732101610409,4.2458,235.68,235.52,10.38937004]
[1732101610410,1.7658,235.68,235.52,10.38937004]
[1732101610613,29.8144221,235.68,235.55,10.38937004]
[1732101610817,1.7658,235.68,235.56,2.48]
[1732101611018,2.48,235.71,235.56,2.48]
[1732101611019,2.48,235.71,235.58,10.38937004]
[1732101611218,10.38937004,235.72,235.58,10.38937004]
[1732101611618,10.38937004,235.75,235.58,10.38937004]
[1732101612012,10.38937004,235.75,235.61,10.38937004]
[1732101612217,10.38937004,235.75,235.62,4.3963]
[1732101612615,1.8455,235.76,235.62,4.3963]
[1732101612823,10.38937004,235.75,235.62,4.3963]
[1732101613211,1.8455,235.76,235.62,4.3963]
[1732101614218,10.38937004,235.8,235.64,10.38937004]
[1732101614421,10.38937004,235.8,235.67,10.38937004]
[1732101614725,1.7605,235.83,235.68,2.48]
[1732101614726,12.14987004,235.83,235.68,2.48]
[1732101615118,1.7605,235.83,235.7,10.38937004]
[1732101615728,10.38937004,235.86,235.7,10.38937004]
[1732101615928,10.38937004,235.86,235.73,10.38937004]
[1732101616127,10.38937004,235.86,235.74,2.48]
[1732101617730,10.38937004,235.83,235.74,2.48]
[1732101618033,10.38937004,235.83,235.7,1.79]
[1732101618240,10.38937004,235.8,235.71,2.46]
[1732101618931,10.38937004,235.86,235.71,2.46]
[1732101621635,10.38937004,235.83,235.67,10.38937004]
[1732101621831,10.38937004,235.83,235.68,2.46]
[1732101622227,10.38937004,235.83,235.7,10.38937004]
[1732101622834,10.38937004,235.8,235.63,3.5608]
[1732101623138,10.38937004,235.8,235.64,2.46]
[1732101623731,10.38937004,235.8,235.65,2.46]
[1732101624838,10.38937004,235.8,235.66,10.38937004]
[1732101626836,3.46,235.82,235.66,10.38937004]
[1732101627833,3.46,235.82,235.69,10.38937004]
[1732101627834,1.0,235.82,235.69,10.38937004]
[1732101628240,1.0,235.82,235.72,10.38937004]
[1732101628441,1.0,235.82,235.73,2.4]
[1732101629142,13.98287004,235.89,235.75,10.38937004]
[1732101630435,13.98287004,235.89,235.74,1.7748]
[1732101630638,3.5935,235.89,235.74,1.7748]
[1732101632441,16.56628499,235.88,235.73,2.4]
[1732101632641,17.56628499,235.88,235.73,2.4]
[1732101632940,1.0,235.88,235.73,2.4]
[1732101634635,17.56628499,235.88,235.73,2.4]
[1732101634833,16.56628499,235.84,235.64,18.49088499]
[1732101635035,18.96628499,235.84,235.65,2.4]
[1732101635842,1.0,235.83,235.65,2.4]
[1732101636541,16.56628499,235.8,235.64,1.9246]
[1732101636740,5.5877,235.79,235.65,2.4]
[1732101637345,5.5877,235.79,235.66,2.4]
[1732101637645,16.56628499,235.76,235.62,2.4]
[1732101637841,16.56628499,235.76,235.6,2.4]
[1732101638746,1.0,235.75,235.6,2.4]
[1732101639144,1.0,235.75,235.6,18.96628499]
[1732101640337,1.0,235.75,235.6,16.56628499]
[1732101640547,1.0,235.75,235.61,2.4]
[1732101640749,2.4,235.74,235.62,2.4]
[1732101641351,16.56628499,235.73,235.54,5.5041]
[1732101641543,16.56628499,235.73,235.55,2.4]
[1732101641848,17.56628499,235.73,235.56,16.56628499]
[1732101642043,1.0,235.73,235.56,16.56628499]
[1732101644043,17.56628499,235.73,235.55,2.4]
[1732101646147,1.0,235.73,235.56,16.56628499]
[1732101646546,1.0,235.73,235.6,16.56628499]
[1732101646755,1.0,235.73,235.61,2.4]
[1732101653457,1.0,235.73,235.63,10.36718223]
[1732101654056,1.0,235.73,235.66,10.36718223]
[1732101654260,1.0,235.73,235.67,2.4]
[1732101655060,5.5877,235.79,235.67,2.4]
[1732101655561,5.5877,235.79,235.68,2.4]
[1732101656361,10.36718223,235.78,235.68,2.4]
[1732101657053,5.5877,235.79,235.68,2.4]
[1732101657659,9.2755851,235.78,235.68,2.4]
[1732101657956,5.5877,235.79,235.68,2.4]
[1732101659657,5.5877,235.79,235.69,10.36718223]
[1732101660557,5.5877,235.79,235.68,2.4]
[1732101660762,11.36718223,235.78,235.68,2.4]
[1732101660962,21.86775575,235.78,235.68,2.4]
[1732101661454,11.36718223,235.78,235.68,2.4]
[1732101661656,1.0,235.78,235.68,2.4]
[1732101662061,1.0,235.78,235.69,10.36718223]
[1732101663665,1.0,235.78,235.72,10.36718223]
[1732101664461,10.36718223,235.87,235.72,10.36718223]
[1732101664760,15.85168223,235.9,235.75,10.36718223]
[1732101665058,5.4845,235.9,235.78,10.36718223]
[1732101665264,3.6246,235.9,235.78,10.36718223]
[1732101665465,10.36718223,235.93,235.78,10.36718223]
[1732101665667,10.51063723,235.92,235.78,10.36718223]
[1732101666659,10.36718223,235.93,235.78,10.36718223]
[1732101666860,3.5392,235.96,235.81,10.36718223]
[1732101667163,28.14910047,235.95,235.82,2.38]
[1732101667362,3.5392,235.96,235.82,2.38]
[1732101667866,3.5392,235.96,235.84,10.36718223]
[1732101668362,10.36718223,236.0,235.84,10.36718223]
[1732101669161,10.36718223,236.0,235.87,10.36718223]
[1732101669461,10.36718223,236.0,235.88,2.38]
[1732101670362,1.8673,236.02,235.88,2.38]
[1732101671165,1.8673,236.02,235.9,10.36718223]
[1732101671765,13.98388223,236.06,235.9,10.36718223]
[1732101672266,10.36718223,236.09,235.93,10.36718223]
[1732101672460,10.36718223,236.09,235.94,2.38]
[1732101673058,3.5816,236.15,235.96,10.36718223]
[1732101673257,10.36718223,236.1,235.95,5.6519]
[1732101674363,10.36718223,236.07,235.95,5.6519]
[1732101674569,10.36718223,236.04,235.94,2.38]
[1732101674764,10.36718223,236.01,235.94,2.38]
[1732101676962,10.36718223,236.01,235.86,5.4429]
[1732101676963,10.36718223,235.98,235.87,2.38]
[1732101677167,10.36718223,236.01,235.87,2.38]
[1732101677769,1.0,236.0,235.87,2.38]
[1732101678068,1.0,236.0,235.89,10.36718223]
[1732101678270,10.36718223,236.04,235.89,10.36718223]
[1732101678575,1.8696,236.05,235.89,10.36718223]
[1732101681971,10.36718223,236.07,235.92,10.36718223]
[1732101682273,10.36718223,236.1,235.95,10.36718223]
[1732101682478,10.36718223,236.1,235.96,1.757]
[1732101683673,10.36718223,236.07,235.96,1.757]
[1732101684679,6.32884,236.13,235.96,1.757]
[1732101684680,10.36718223,236.1,235.96,1.757]
[1732101686680,10.36718223,236.1,235.96,5.4403]
[1732101687376,14.31602223,236.13,235.98,10.36718223]
[1732101687582,14.31602223,236.13,235.99,2.34]
[1732101687886,12.46762223,236.13,235.99,2.34]
[1732101688088,2.10044,236.13,236.01,10.36718223]
[1732101688985,0.35884,236.13,236.01,10.36718223]
[1732101689184,0.35884,236.13,235.99,2.34]
[1732101689387,10.36718223,236.12,235.99,2.34]
[1732101692791,0.35884,236.13,236.01,10.36718223]
[1732101692985,0.35884,236.13,235.96,5.4403]
[1732101693187,0.35884,236.13,236.02,10.36718223]
[1732101693380,0.35884,236.13,236.03,2.34]
[1732101696088,0.35884,236.13,236.04,2.34]
[1732101696287,10.36718223,236.12,236.04,2.34]
[1732101697386,0.35884,236.13,236.04,2.34]
[1732101698885,10.36718223,236.12,236.0,2.34]
[1732101699090,11.36718223,236.12,236.0,2.34]
[1732101702495,1.0,236.12,236.0,2.34]
[1732101705784,1.0,236.12,236.02,10.36718223]
[1732101706190,1.8148,236.18,236.02,10.36718223]
[1732101706391,1.8148,236.18,236.05,10.36718223]
[1732101706587,1.8148,236.18,236.06,2.34]
[1732101707584,1.8148,236.18,236.08,10.36718223]
[1732101708989,10.36718223,236.22,236.08,10.36718223]
[1732101710488,3.6641,236.24,236.11,10.36718223]
[1732101710691,3.6641,236.24,236.12,2.34]
[1732101711097,10.48955953,236.23,236.12,2.34]
[1732101711499,3.6641,236.24,236.12,2.34]
[1732101711690,19.76270916,236.23,236.12,2.34]
[1732101711890,3.6641,236.24,236.12,2.34]
[1732101712096,19.75942382,236.23,236.12,2.34]
[1732101712394,3.6641,236.24,236.12,2.34]
[1732101712604,19.7676011,236.23,236.12,2.34]
[1732101712794,3.6641,236.24,236.12,2.34]
[1732101715606,10.36718223,236.22,236.12,2.34]
[1732101715791,9.27039019,236.21,236.05,10.36718223]
[1732101715991,10.36718223,236.19,236.06,2.34]
[1732101716494,10.36718223,236.16,236.05,2.34]
[1732101716701,10.49211774,236.15,236.05,2.34]
[1732101716898,10.36718223,236.16,236.05,2.34]
[1732101717497,1.7838,236.17,236.05,2.34]
[1732101720503,1.7838,236.17,236.05,12.70718223]
[1732101721300,1.0,236.18,236.05,12.70718223]
[1732101724307,1.0,236.18,236.08,10.36718223]
[1732101728017,3.6641,236.24,236.11,10.36718223]
[1732101728217,3.6641,236.24,236.12,2.32]
[1732101728717,0.49815,236.29,236.17,10.36718223]
[1732101728919,0.49815,236.29,236.18,2.32]
[1732101731710,10.86533223,236.29,236.18,2.32]
[1732101731914,10.36718223,236.26,236.11,10.36718223]
[1732101732107,10.36718223,236.23,236.12,2.32]
[1732101732514,28.16846615,236.22,236.12,2.32]
[1732101732713,10.36718223,236.23,236.12,2.32]
[1732101732915,9.2938928,236.22,236.12,2.32]
[1732101733208,28.1682772,236.22,236.12,2.32]
[1732101733406,10.36718223,236.23,236.12,2.32]
[1732101734318,28.15611462,236.22,236.12,2.32]
[1732101734513,10.36718223,236.23,236.12,2.32]
[1732101734720,10.51482035,236.22,236.12,2.32]
[1732101735318,5.3141,236.25,236.12,2.32]
[1732101735720,5.3141,236.25,236.14,10.36718223]
[1732101735913,3.5555,236.25,236.14,10.36718223]
[1732101738616,11.36718223,236.28,236.14,10.36718223]
[1732101738919,1.0,236.28,236.14,10.36718223]
[1732101742316,1.0,236.28,236.17,10.36718223]
[1732101742618,1.0,236.28,236.18,2.32]
[1732101742925,1.0,236.28,236.2,10.36718223]
[1732101743714,0.49815,236.29,236.2,10.36718223]
[1732101744621,0.49815,236.29,236.19,1.8978]
[1732101745116,0.49815,236.29,236.06,3.5759]
[1732101745117,0.49815,236.29,236.14,10.36718223]
[1732101745420,0.49815,236.29,236.15,2.32]
[1732101745421,10.36718223,236.28,236.15,2.32]
[1732101745814,10.36718223,236.25,236.11,10.36718223]
[1732101746121,10.36718223,236.25,236.12,2.32]
[1732101746319,12.68718223,236.25,236.12,2.32]
[1732101746716,1.0,236.24,236.12,2.32]
[1732101750527,1.0,236.24,236.12,12.68718223]
[1732101751225,11.53276509,236.24,236.12,2.32]
[1732101751422,1.0,236.24,236.12,2.32]
[1732101752024,1.0,236.24,236.13,10.36718223]
[1732101752227,10.36718223,236.31,236.16,10.36718223]
[1732101752427,28.21589641,236.3,236.16,10.36718223]
[1732101752628,28.21589641,236.29,236.16,10.36718223]
[1732101752929,10.36718223,236.31,236.16,10.36718223]
[1732101753125,28.21924936,236.3,236.19,10.36718223]
[1732101753323,1.7676,236.33,236.2,2.32]
[1732101753525,28.21867877,236.31,236.2,2.32]
[1732101753727,1.7676,236.33,236.2,2.32]
[1732101753926,19.84953704,236.31,236.2,2.32]
[1732101754228,10.53823102,236.3,236.2,2.32]
[1732101754436,10.36718223,236.31,236.2,2.32]
[1732101754736,28.21500059,236.3,236.2,2.32]
[1732101754927,28.21500059,236.29,236.2,2.32]
[1732101755125,30.21224097,236.28,236.16,2.32]
[1732101755330,10.53709052,236.27,236.16,2.32]
[1732101755531,19.8448162,236.27,236.16,2.32]
[1732101755727,10.36718223,236.28,236.16,2.32]
[1732101755927,10.53688939,236.27,236.16,2.32]
[1732101756332,10.36718223,236.28,236.16,2.32]
[1732101756534,1.0,236.29,236.16,2.32]
[1732101756734,1.0,236.29,236.17,1.8484]
[1732101756935,10.30699964,236.29,236.17,1.8484]
[1732101757232,29.20853644,236.29,236.17,1.8484]
[1732101757429,9.36551743,236.29,236.17,1.8484]
[1732101757628,10.53556752,236.28,236.17,1.8484]
[1732101757830,1.0,236.29,236.17,1.8484]
[1732101758237,11.53654286,236.29,236.17,1.8484]
[1732101758743,1.0,236.29,236.17,1.8484]
[1732101759745,1.0,236.29,236.18,10.36718223]
[1732101762643,1.0,236.29,236.21,10.36718223]
[1732101762840,1.0,236.29,236.22,2.32]
[1732101763246,28.21036833,236.34,236.22,2.32]
[1732101763438,10.53677416,236.33,236.22,2.32]
[1732101763642,4.24702,236.36,236.22,2.32]
[1732101763840,18.90727777,236.35,236.22,2.32]
[1732101764039,28.21689918,236.34,236.22,2.32]
[1732101764246,28.21911907,236.33,236.22,2.32]
[1732101764547,4.24702,236.36,236.22,2.32]
[1732101764741,28.22017521,236.35,236.22,2.32]
[1732101764945,28.22017521,236.34,236.22,2.32]
[1732101765142,28.22017521,236.33,236.18,10.36718223]
[1732101765347,28.22017521,236.32,236.19,2.32]
[1732101765548,10.36718223,236.34,236.19,2.32]
[1732101765753,28.21674547,236.33,236.19,2.32]
[1732101765950,28.21674547,236.32,236.19,2.32]
[1732101766150,10.36718223,236.34,236.19,2.32]
[1732101766343,28.21618555,236.33,236.19,2.32]
[1732101766543,10.36718223,236.34,236.21,10.36718223]
[1732101766748,28.22397512,236.33,236.21,10.36718223]
[1732101766943,10.36718223,236.34,236.21,10.36718223]
[1732101767146,18.91350978,236.33,236.21,10.36718223]
[1732101767648,10.36718223,236.34,236.19,2.32]
[1732101767845,9.31400652,236.33,236.19,2.32]
[1732101768049,10.54480318,236.32,236.19,2.32]
[1732101768250,17.68607841,236.31,236.19,2.32]
[1732101768448,10.36718223,236.34,236.19,2.32]
[1732101768650,28.23796819,236.33,236.19,2.32]
[1732101768854,28.23796819,236.32,236.19,2.32]
[1732101769155,10.36718223,236.34,236.19,2.32]
[1732101769354,10.54990888,236.31,236.19,2.32]
[1732101769548,19.86939832,236.3,236.19,2.32]
[1732101769747,28.24566143,236.29,236.19,2.32]
[1732101769957,28.24612253,236.28,236.19,2.32]
[1732101770149,10.36718223,236.34,236.19,2.32]
[1732101770351,28.25108015,236.33,236.19,2.32]
[1732101770655,6.60254959,236.3,236.21,6.60254959]
[1732101770857,28.25108015,236.29,236.21,6.60254959]
[1732101771053,28.25108015,236.28,236.21,6.60254959]
[1732101771260,6.60254959,236.3,236.21,6.60254959]
[1732101771453,28.25373386,236.29,236.21,6.60254959]
[1732101771758,10.55291603,236.28,236.21,6.60254959]
[1732101771958,4.24702,236.36,236.25,6.60254959]
[1732101772155,6.60254959,236.33,236.25,6.60254959]
[1732101772454,6.60254959,236.33,236.19,2.32]
[1732101772455,28.25632883,236.32,236.23,6.60254959]
[1732101772653,28.25632883,236.31,236.23,6.60254959]
[1732101772955,28.25632883,236.3,236.19,2.32]
[1732101773254,34.85887842,236.29,236.21,6.60254959]
[1732101773557,28.25632883,236.28,236.21,6.60254959]
[1732101773752,17.70244285,236.27,236.21,6.60254959]
[1732101774056,6.60254959,236.3,236.21,6.60254959]
[1732101774350,28.26147918,236.29,236.23,6.60254959]
[1732101774551,8.38134521,236.29,236.23,6.60254959]
[1732101774953,6.60254959,236.32,236.23,6.60254959]
[1732101775154,28.26207006,236.31,236.23,6.60254959]
[1732101775356,28.26207006,236.3,236.23,6.60254959]
[1732101775656,6.60254959,236.32,236.23,6.60254959]
[1732101775857,28.2531567,236.31,236.23,6.60254959]
[1732101776052,10.55272681,236.3,236.23,6.60254959]
[1732101776253,6.60254959,236.32,236.25,6.60254959]
[1732101776454,28.24839731,236.31,236.25,6.60254959]
[1732101776756,1.8893,236.35,236.25,6.60254959]
[1732101776956,6.60254959,236.34,236.25,8.92254959]
[1732101777151,28.24866648,236.33,236.25,8.92254959]
[1732101777352,28.24866648,236.32,236.25,8.92254959]
[1732101777550,6.60254959,236.34,236.25,8.92254959]
[1732101777749,10.55082104,236.33,236.25,8.92254959]
[1732101778155,10.55082104,236.33,236.27,6.60254959]
[1732101778347,10.55082104,236.33,236.28,6.60254959]
[1732101778555,1.8893,236.35,236.28,6.60254959]
[1732101778949,30.14058163,236.35,236.28,6.60254959]
[1732101779159,28.25128163,236.34,236.28,6.60254959]
[1732101779355,19.87424345,236.33,236.28,6.60254959]
[1732101779556,1.8893,236.35,236.28,6.60254959]
[1732101780058,30.14233547,236.35,236.28,6.60254959]
[1732101780263,28.25303547,236.34,236.28,6.60254959]
[1732101780556,28.25303547,236.33,236.28,6.60254959]
[1732101780756,8.49184959,236.35,236.28,6.60254959]
[1732101781150,6.60254959,236.33,236.25,8.92254959]
[1732101781348,10.55423284,236.32,236.25,8.92254959]
[1732101781757,6.60254959,236.33,236.25,8.92254959]
[1732101781957,10.5545196,236.32,236.25,8.92254959]
[1732101782853,6.60254959,236.31,236.17,1.8484]
[1732101783057,6.60254959,236.29,236.18,2.32]
[1732101783256,6.60254959,236.29,236.2,6.60254959]
[1732101784160,6.60254959,236.31,236.22,6.60254959]
[1732101784659,28.25747935,236.3,236.22,6.60254959]
[1732101784865,28.25747935,236.29,236.22,6.60254959]
[1732101785062,4.2093,236.35,236.22,6.60254959]
[1732101785266,6.60254959,236.3,236.22,6.60254959]
[1732101785463,28.25640786,236.29,236.22,6.60254959]
[1732101785763,6.60254959,236.3,236.22,6.60254959]
[1732101785958,28.25715889,236.29,236.22,6.60254959]
[1732101786168,6.60254959,236.3,236.22,6.60254959]
[1732101786460,28.25748482,236.29,236.22,6.60254959]
[1732101786657,1.0,236.34,236.24,6.60254959]
[1732101786861,28.25902652,236.38,236.33,6.60254959]
[1732101787159,8.38014006,236.37,236.36,6.60254959]
[1732101787463,8.51914959,236.48,236.36,8.92254959]
[1732101787660,28.25492798,236.47,236.4,6.60254959]
[1732101787857,19.87535784,236.46,236.4,6.60254959]
[1732101788061,6.60254959,236.41,236.32,2.32]
[1732101788261,6.60254959,236.41,236.33,2.32]
[1732101788464,6.60254959,236.41,236.34,6.60254959]
[1732101788662,6.60254959,236.41,236.33,2.32]
[1732101788663,10.30552904,236.46,236.33,2.32]
[1732101788861,28.23781127,236.45,236.33,2.32]
[1732101789167,10.30552904,236.43,236.27,10.30552904]
[1732101789361,10.30552904,236.43,236.26,3.7341]
[1732101789362,10.30552904,236.4,236.28,2.32]
[1732101789568,28.23781127,236.39,236.28,2.32]
[1732101789766,1.7795,236.39,236.28,2.32]
[1732101790061,10.30552904,236.37,236.17,3.721]
[1732101790270,10.30552904,236.34,236.18,12.62552904]
[1732101790867,1.0,236.38,236.21,10.30552904]
[1732101790868,10.30552904,236.37,236.21,10.30552904]
[1732101791064,10.53877941,236.36,236.21,10.30552904]
[1732101791363,18.90658911,236.36,236.21,10.30552904]
[1732101791666,8.3678097,236.36,236.21,10.30552904]
[1732101792063,12.62552904,236.37,236.21,10.30552904]
[1732101792266,10.30552904,236.37,236.21,10.30552904]
[1732101792764,10.53955305,236.36,236.21,10.30552904]
[1732101792967,10.30552904,236.37,236.21,10.30552904]
[1732101793265,1.0,236.38,236.24,10.30552904]
[1732101793466,1.0,236.38,236.25,2.32]
[1732101795264,11.54427846,236.38,236.25,2.32]
[1732101795567,10.30552904,236.37,236.21,10.30552904]
[1732101795759,10.30552904,236.37,236.22,2.32]
[1732101796163,10.54302163,236.36,236.22,2.32]
[1732101797767,10.30552904,236.34,236.18,10.30552904]
[1732101797966,12.62552904,236.34,236.19,2.32]
[1732101798665,10.5435102,236.33,236.19,2.32]
[1732101799266,12.62552904,236.34,236.19,2.32]
[1732101799267,10.30552904,236.34,236.19,2.32]
[1732101799568,1.0,236.35,236.21,10.30552904]
[1732101799971,20.85629499,236.35,236.21,10.30552904]
[1732101800163,20.85629499,236.35,236.19,2.32]
[1732101800164,1.0,236.35,236.24,10.30552904]
[1732101800366,1.0,236.35,236.25,2.32]
[1732101803470,20.86598984,236.35,236.25,2.32]
[1732101803671,1.0,236.35,236.25,2.32]
[1732101804073,1.0,236.35,236.21,10.30552904]
[1732101804265,10.30552904,236.34,236.25,2.32]
[1732101804463,10.30552904,236.34,236.24,2.32]
[1732101804865,10.55131099,236.33,236.24,2.32]
[1732101805168,10.55131099,236.33,236.18,10.30552904]
[1732101805373,3.6011,236.32,236.19,2.32]
[1732101805568,21.29790838,236.32,236.19,2.32]
[1732101805772,3.6011,236.32,236.19,2.32]
[1732101806165,10.55124144,236.31,236.19,2.32]
[1732101806771,3.6011,236.32,236.19,2.32]
[1732101807764,10.30552904,236.31,236.16,30.46]
[1732101807970,1.8113,236.3,236.17,2.32]
[1732101808369,21.66822536,236.3,236.17,2.32]
[1732101808572,1.8113,236.3,236.17,2.32]
[1732101808770,11.12460862,236.3,236.17,2.32]
[1732101808970,12.35453376,236.3,236.17,2.32]
[1732101809171,20.72584685,236.3,236.17,2.32]
[1732101809367,1.8113,236.3,236.17,2.32]
[1732101809572,30.0364353,236.3,236.17,2.32]
[1732101809772,10.54221853,236.29,236.18,2.32]
[1732101809974,1.8113,236.3,236.18,2.32]
[1732101810173,30.04277495,236.3,236.18,2.32]
[1732101810374,10.54458677,236.29,236.18,2.32]
[1732101810674,1.8113,236.3,236.18,2.32]
[1732101810874,30.04110607,236.3,236.18,2.32]
[1732101811069,10.54396522,236.29,236.18,2.32]
[1732101811270,1.8113,236.3,236.18,2.32]
[1732101811470,30.04380418,236.3,236.18,2.32]
[1732101811669,28.23250418,236.29,236.18,2.32]
[1732101811875,1.8113,236.3,236.18,2.32]
[1732101812075,30.04642025,236.3,236.18,2.32]
[1732101812272,28.23512025,236.29,236.18,2.32]
[1732101812476,1.8113,236.3,236.18,2.32]
[1732101812678,30.04387703,236.3,236.18,2.32]
[1732101812975,28.23257703,236.29,236.18,2.32]
[1732101813170,1.8113,236.3,236.18,2.32]
[1732101813371,30.04075567,236.3,236.18,2.32]
[1732101813568,1.8113,236.3,236.18,2.32]
[1732101813778,30.04299863,236.3,236.18,2.32]
[1732101813971,1.8113,236.3,236.18,2.32]
[1732101814172,30.04289643,236.3,236.18,2.32]
[1732101814372,10.54413129,236.29,236.18,2.32]
[1732101814577,1.8113,236.3,236.18,2.32]
[1732101814780,30.04201583,236.3,236.18,2.32]
[1732101814973,1.8113,236.3,236.18,2.32]
[1732101815170,30.04248442,236.3,236.18,2.32]
[1732101815374,30.04248442,236.3,236.18,12.62552904]
[1732101815375,1.8113,236.3,236.18,12.62552904]
[1732101815577,30.04215788,236.3,236.18,12.62552904]
[1732101815878,10.18351482,236.3,236.18,12.62552904]
[1732101816180,1.8113,236.3,236.18,12.62552904]
[1732101816369,28.22528059,236.3,236.18,12.62552904]
[1732101816571,1.0,236.31,236.18,2.32]
[1732101816777,1.0,236.31,236.24,6.60080893]
[1732101816972,1.0,236.31,236.25,2.32]
[1732101818272,6.60080893,236.27,236.21,2.32]
[1732101820682,10.31833455,236.3,236.21,2.32]
[1732101821978,10.5381307,236.29,236.21,2.32]
[1732101822681,1.0,236.31,236.21,2.32]
[1732101822981,11.31833455,236.31,236.21,2.32]
[1732101823184,10.53827171,236.3,236.21,2.32]
[1732101823879,1.0,236.31,236.21,2.32]
[1732101824180,29.21527048,236.31,236.21,2.32]
[1732101824380,19.84764934,236.3,236.21,2.32]
[1732101824578,1.0,236.31,236.21,2.32]
[1732101824780,29.21484005,236.31,236.21,2.32]
[1732101824977,28.21484005,236.3,236.21,2.32]
[1732101825180,1.0,236.31,236.21,2.32]
[1732101825382,29.21695934,236.31,236.21,2.32]